bitfinex-derivatives/quotes_ETHF0:USTF0_20250824
["timestamp","ask_amount","ask_price","bid_price","bid_amount"]
[1756076939355,1.2024,4781.8,4781.7,1.6986]
[1756076940061,1.37795046,4781.8,4781.7,2.0391]
[1756076940259,0.94785046,4781.8,4781.7,2.0391]
[1756076940457,0.6661,4781.7,4780.5,1.2186]
[1756076940658,0.85425046,4781.6,4780.5,0.7558]
[1756076940858,0.7255,4781.6,4781.5,2.0391]
[1756076941060,1.39095284,4781.6,4781.5,2.0391]
[1756076941265,1.85525284,4781.6,4780.4,0.3405]
[1756076941466,0.5237,4780.7,4780.6,1.6986]
[1756076941764,0.7255,4780.7,4780.6,2.0391]
[1756076942162,0.65409579,4780.7,4780.6,2.0391]
[1756076942664,3.5032,4781.4,4781.3,2.0391]
[1756076942864,3.86196667,4781.4,4781.3,2.0391]
[1756076943961,0.65416667,4781.4,4781.3,2.0391]
[1756076948062,0.65416667,4781.4,4781.3,5.2469]
[1756076948273,3.2078,4782.1,4781.4,1.2186]
[1756076948469,3.2078,4782.1,4782.0,0.8205]
[1756076948667,3.86158206,4782.1,4782.0,2.0391]
[1756076949169,0.65378206,4782.1,4782.0,2.0391]
[1756076949972,0.94918206,4782.1,4782.0,2.0391]
[1756076950167,1.85618206,4782.1,4782.0,1.6986]
[1756076950473,1.85618206,4782.1,4782.0,2.0391]
[1756076950474,1.39978206,4782.1,4782.0,2.0391]
[1756076953665,1.39188206,4782.1,4782.0,2.0391]
[1756076954875,1.37928206,4782.1,4782.0,2.0391]
[1756076956071,1.39188206,4782.1,4782.0,2.0391]
[1756076956272,1.85618206,4782.1,4782.0,1.6986]
[1756076956671,1.0006,4781.3,4781.2,0.9962]
[1756076956874,0.2283,4780.7,4780.6,0.8781]
[1756076957074,1.85884273,4780.7,4780.6,0.8781]
[1756076957867,1.85884273,4780.7,4780.1,0.3405]
[1756076958068,0.746,4780.2,4780.1,1.161]
[1756076958277,1.85884273,4780.2,4779.7,0.3405]
[1756076958474,0.746,4779.8,4779.7,1.161]
[1756076958668,0.6661,4779.7,4779.4,0.8781]
[1756076958876,0.746,4779.5,4779.4,0.8781]
[1756076959074,3.2078,4780.0,4779.0,0.3405]
[1756076959274,1.2024,4779.2,4779.1,0.5925]
[1756076959583,0.746,4778.6,4778.5,1.161]
[1756076959781,0.7381,4778.6,4778.5,2.0391]
[1756076960576,1.0006,4778.6,4778.0,0.3405]
[1756076960776,0.7255,4778.0,4777.9,0.8205]
[1756076960972,0.746,4778.0,4777.9,1.161]
[1756076961182,0.746,4778.0,4777.9,2.0391]
[1756076961376,0.746,4778.0,4777.9,1.6986]
[1756076961574,0.746,4777.6,4777.5,0.8781]
[1756076961875,1.2024,4777.4,4777.3,0.4153]
[1756076962075,3.2078,4777.9,4776.7,0.8781]
[1756076962076,0.5363,4777.1,4776.7,0.8781]
[1756076962288,3.2078,4777.9,4776.7,0.8781]
[1756076962581,0.6661,4777.7,4776.7,0.8781]
[1756076962782,0.65365335,4777.6,4776.7,0.8781]
[1756076963080,0.65365335,4777.5,4776.6,1.2186]
[1756076963289,0.65365335,4777.4,4776.5,3.2078]
[1756076963472,0.2018,4777.7,4776.8,0.3405]
[1756076963673,0.2018,4777.5,4776.9,0.8781]
[1756076963874,41.0018,4777.8,4776.6,1.2186]
[1756076964075,0.2018,4777.5,4776.4,1.2186]
[1756076964279,3.2078,4777.4,4776.0,3.2078]
[1756076964477,3.2078,4777.4,4776.6,0.4153]
[1756076964682,0.2097,4777.3,4776.7,1.2186]
[1756076965584,0.4643,4776.8,4776.7,0.8781]
[1756076965780,0.2097,4776.8,4776.7,0.8781]
[1756076965986,0.2018,4776.8,4776.7,1.2186]
[1756076966786,0.4643,4777.2,4775.8,19.97281]
[1756076967086,0.2018,4777.0,4776.9,1.2186]
[1756076967481,0.2097,4777.0,4776.9,0.8781]
[1756076967880,0.2018,4777.0,4776.9,1.2176]
[1756076968376,0.2018,4777.0,4776.9,2.0161]
[1756076968578,3.2078,4777.5,4777.4,0.7985]
[1756076968779,40.8,4777.8,4777.7,2.0066]
[1756076969776,0.2027,4778.4,4777.7,2.0066]
[1756076969983,0.65016576,4778.3,4777.8,0.8686]
[1756076970285,42.39056576,4778.2,4777.7,0.4252]
[1756076970582,0.7063,4777.5,4777.4,1.1541]
[1756076970794,0.7063,4777.5,4777.4,2.0066]
[1756076971276,0.288,4777.5,4777.4,2.0066]
[1756076972079,3.2078,4777.9,4777.8,0.2271]
[1756076972285,3.2078,4777.9,4777.8,2.0066]
[1756076975286,40.8,4778.5,4777.8,0.7985]
[1756076975487,40.8,4778.5,4776.9,3.62651]
[1756076975488,0.4903,4778.2,4778.1,2.0066]
[1756076975683,40.8,4778.5,4778.1,2.0066]
[1756076975884,3.2078,4778.7,4778.4,2.0066]
[1756076976089,3.2078,4778.7,4778.6,2.0066]
[1756076977689,40.8,4779.1,4779.0,0.7985]
[1756076977891,0.2023,4779.2,4779.0,1.2237]
[1756076978093,0.7059,4779.1,4779.0,0.2855]
[1756076978485,0.7059,4779.1,4779.0,1.44]
[1756076978686,0.7059,4779.1,4779.0,1.6671]
[1756076978899,44.2101,4779.3,4779.2,0.7985]
[1756076979090,44.2101,4779.3,4779.2,2.0066]
[1756076979486,3.2078,4779.3,4779.2,2.0066]
[1756076981289,0.2023,4779.7,4779.3,1.2081]
[1756076981490,0.7059,4779.7,4779.6,2.0066]
[1756076982888,3.4101,4779.9,4779.7,0.3395]
[1756076983193,3.9137,4780.4,4780.3,2.0066]
[1756076983493,4.14746866,4780.4,4780.3,2.0066]
[1756076983994,0.6391,4780.9,4780.4,0.4252]
[1756076984195,3.6981,4781.0,4780.9,2.0066]
[1756076984500,3.85980515,4781.0,4780.9,2.0066]
[1756076985287,0.65200515,4781.0,4780.9,2.0066]
[1756076985491,0.7059,4781.5,4781.4,2.0066]
[1756076985696,1.35867645,4781.5,4781.4,2.0066]
[1756076985898,3.2078,4781.8,4781.7,0.7985]
[1756076986098,3.2078,4782.5,4781.7,2.0066]
[1756076986301,3.2078,4782.5,4780.5,1.04599]
[1756076986302,0.65269393,4782.4,4782.3,2.0066]
[1756076986494,3.2078,4783.2,4782.3,1.2419]
[1756076986694,0.65260165,4783.1,4782.5,1.2081]
[1756076986889,0.94060165,4783.0,4782.9,0.7985]
[1756076987099,0.94060165,4783.0,4782.9,2.0066]
[1756076987698,0.65260165,4783.0,4782.9,2.0066]
[1756076987894,3.2078,4783.2,4782.9,2.0066]
[1756076988105,0.65205056,4783.1,4783.0,1.2081]
[1756076988306,0.2023,4783.3,4783.0,1.2081]
[1756076988493,0.85367728,4783.2,4783.1,1.2081]
[1756076989395,0.2023,4783.2,4783.1,1.2081]
[1756076990789,0.2023,4783.2,4783.1,2.0066]
[1756076993501,0.4903,4783.2,4783.1,2.0066]
[1756076994099,3.2078,4783.9,4783.6,2.0066]
[1756076994298,3.2078,4783.9,4783.7,0.7985]
[1756076994603,3.2078,4783.9,4783.8,2.0066]
[1756076995004,3.4101,4784.6,4784.0,0.7985]
[1756076995203,3.2078,4784.6,4784.5,0.7985]
[1756076995405,3.2078,4784.6,4784.5,2.0066]
[1756076998002,0.2013,4784.5,4783.6,1.1997]
[1756076998305,0.5045,4783.9,4783.8,1.6448]
[1756076998509,0.7058,4783.9,4783.8,1.9998]
[1756076998707,0.2731,4783.9,4783.8,1.9998]
[1756076999409,0.4744,4783.9,4783.8,1.9998]
[1756076999602,0.7058,4783.9,4783.8,1.6448]
[1756076999803,1.107,4783.9,4783.8,1.6448]
[1756077000906,0.2731,4783.9,4783.8,1.9998]
[1756077001402,1.65645786,4786.0,4782.7,0.16525066]
[1756077001403,3.2078,4784.5,4784.4,1.9998]
[1756077001707,3.2078,4785.5,4785.1,0.8001]
[1756077001900,0.2731,4785.3,4785.2,1.7666]
[1756077002103,41.72125923,4785.3,4785.2,1.9998]
[1756077002510,41.92255923,4785.3,4785.2,1.6448]
[1756077002810,1.75515923,4785.3,4785.2,0.8447]
[1756077003112,0.64815923,4785.3,4785.2,1.9998]
[1756077003506,1.75515923,4785.3,4785.2,1.1418]
[1756077003807,1.75515923,4785.3,4785.2,0.8447]
[1756077005506,1.75515923,4785.3,4784.8,0.355]
[1756077005507,0.4012,4785.2,4784.3,0.8447]
[1756077005710,0.6025,4784.6,4783.9,0.8447]
[1756077005911,0.2013,4784.4,4783.9,0.8447]
[1756077006107,0.64815923,4784.3,4783.8,0.355]
[1756077006403,0.6025,4784.1,4783.5,0.4025]
[1756077006604,0.2013,4783.6,4783.5,0.4025]
[1756077006806,0.84945923,4783.6,4783.5,0.8447]
[1756077007308,0.64815923,4783.6,4783.5,1.1997]
[1756077007506,0.84945923,4783.6,4783.5,1.1997]
[1756077008612,1.25065923,4783.6,4783.1,0.8447]
[1756077008807,3.8103,4783.2,4782.8,0.355]
[1756077009003,0.4012,4783.0,4782.8,0.8447]
[1756077009210,0.84945923,4782.9,4782.8,0.8447]
[1756077009411,3.2078,4783.2,4782.8,0.8447]
[1756077009412,3.2078,4783.2,4782.8,1.1997]
[1756077009715,3.2078,4783.2,4782.6,0.355]
[1756077010011,3.5466,4783.2,4781.9,3.2078]
[1756077010312,3.5466,4783.2,4783.1,1.1997]
[1756077010511,3.5466,4783.2,4783.1,0.8447]
[1756077010703,3.2078,4783.2,4782.6,0.355]
[1756077010908,0.4012,4783.0,4782.8,0.8447]
[1756077011109,0.3388,4782.9,4782.8,0.8447]
[1756077011304,0.74,4782.9,4782.8,0.8447]
[1756077011505,0.4012,4782.7,4782.3,0.4025]
[1756077011806,0.74,4782.4,4780.9,0.4422]
[1756077012012,3.2078,4781.4,4780.9,0.4422]
[1756077012216,0.74,4781.3,4780.9,0.4422]
[1756077012610,40.8,4781.3,4780.4,3.2078]
[1756077013009,3.2078,4781.4,4780.4,3.2078]
[1756077013214,4.70067335,4781.4,4780.9,1.1997]
[1756077013411,4.70067335,4781.4,4781.0,3.2078]
[1756077013412,1.49287335,4781.4,4781.0,3.2078]
[1756077013715,1.49287335,4782.0,4781.0,3.62616]
[1756077014021,1.49287335,4782.0,4781.9,1.1997]
[1756077014206,3.2078,4782.7,4782.0,0.8447]
[1756077014412,0.3388,4782.6,4782.0,0.8447]
[1756077015013,3.2078,4782.7,4781.8,3.2078]
[1756077015219,3.2078,4782.7,4782.5,1.1997]
[1756077015413,3.2078,4782.7,4782.6,1.1997]
[1756077016813,40.8,4783.3,4782.8,0.7972]
[1756077016814,3.2078,4783.3,4782.8,0.7972]
[1756077017114,3.2078,4783.3,4782.7,0.355]
[1756077017308,3.2078,4783.9,4782.7,0.41821]
[1756077017512,0.3388,4784.2,4783.5,3.2078]
[1756077017820,3.2078,4784.5,4783.6,1.1997]
[1756077018015,3.2078,4784.5,4783.7,1.1997]
[1756077018316,3.2078,4784.5,4783.5,3.2078]
[1756077018317,3.2078,4784.5,4783.6,0.355]
[1756077018513,0.4012,4783.9,4783.2,0.8447]
[1756077018719,3.2078,4783.5,4783.2,0.8447]
[1756077019018,0.3388,4783.3,4783.2,0.8447]
[1756077019414,0.3388,4783.3,4783.2,0.4025]
[1756077019607,0.3388,4783.2,4782.5,0.4025]
[1756077019812,0.3388,4783.2,4782.3,0.4422]
[1756077019813,0.3388,4782.8,4782.0,0.8447]
[1756077020008,0.3388,4782.2,4781.5,0.8447]
[1756077021517,0.6096735,4782.1,4781.9,3.2078]
[1756077021720,3.2078,4782.5,4782.0,1.1997]
[1756077021918,0.3388,4782.3,4782.1,0.8447]
[1756077022122,0.94845851,4782.2,4782.1,0.8447]
[1756077022712,0.3388,4782.1,4781.6,0.8447]
[1756077022911,3.2078,4781.7,4781.1,0.8447]
[1756077023218,40.8,4782.7,4780.6,0.8447]
[1756077023219,0.3388,4781.1,4780.6,0.8447]
[1756077023418,0.3388,4780.9,4780.7,0.8447]
[1756077023619,0.94845851,4780.8,4780.1,3.5628]
[1756077023917,0.3388,4780.6,4779.5,30.468]
[1756077024119,0.60965851,4780.5,4779.6,0.8447]
[1756077024422,0.60965851,4780.4,4779.6,0.8447]
[1756077024616,0.60965851,4780.3,4779.6,0.8447]
[1756077024812,0.60965851,4780.2,4779.6,0.8447]
[1756077025110,0.60965851,4780.1,4779.6,1.1997]
[1756077025313,0.3388,4780.6,4779.5,30.113]
[1756077025514,0.60640078,4780.5,4779.8,0.8447]
[1756077025712,0.60640078,4780.4,4779.8,0.8447]
[1756077025911,0.60640078,4780.3,4779.5,30.113]
[1756077026215,0.60640078,4780.2,4779.7,0.8447]
[1756077026414,3.2078,4781.2,4780.3,0.355]
[1756077026612,0.60611834,4781.1,4780.4,0.8447]
[1756077026811,0.60611834,4781.0,4780.5,0.8447]
[1756077027017,0.60611834,4780.9,4780.1,1.1997]
[1756077027219,0.60611834,4780.8,4780.2,1.1997]
[1756077027419,3.2078,4781.2,4780.4,1.1997]
[1756077027718,3.2078,4781.2,4780.0,3.2078]
[1756077027719,0.60597356,4781.1,4780.5,0.4184]
[1756077027925,0.7446,4782.5,4781.0,0.41836]
[1756077028629,0.7446,4782.5,4781.3,0.3484]
[1756077028811,0.7446,4782.5,4781.5,0.3939]
[1756077029016,0.7446,4782.5,4781.6,0.4485]
[1756077029712,0.7446,4782.5,4781.7,0.7423]
[1756077033821,0.7446,4782.5,4781.8,0.8424]
[1756077034023,0.7446,4782.5,4781.9,0.3939]
[1756077036124,0.3265,4782.4,4781.7,0.3484]
[1756077036324,0.8484,4782.3,4781.7,0.3484]
[1756077036521,0.7467,4782.2,4781.9,0.3484]
[1756077036825,0.4202,4782.2,4782.1,0.8424]
[1756077037026,0.4202,4782.2,4782.1,1.1908]
[1756077037324,0.7467,4782.2,4782.1,1.1908]
[1756077037927,4.0,4782.2,4781.1,0.4485]
[1756077038120,0.4282,4781.5,4780.9,0.3939]
[1756077038315,0.8484,4781.4,4780.6,0.4485]
[1756077038521,0.3265,4781.3,4780.6,0.4485]
[1756077039027,40.8,4781.5,4780.4,3.2078]
[1756077039028,3.2078,4781.1,4780.4,3.2078]
[1756077039226,40.8,4781.5,4779.9,0.4485]
[1756077039227,3.2078,4780.5,4779.9,0.4485]
[1756077039426,3.2078,4780.5,4779.5,0.3484]
[1756077039725,3.2078,4780.5,4779.6,0.7423]
[1756077040028,0.7547,4780.3,4779.8,0.8424]
[1756077040220,3.2078,4780.5,4779.8,0.4485]
[1756077040415,3.2078,4780.5,4779.7,0.3484]
[1756077040416,3.2078,4780.5,4779.7,0.41847]
[1756077040623,3.2078,4780.5,4778.8,1.21795942]
[1756077040624,0.4202,4781.7,4780.5,1.1908]
[1756077040922,0.7547,4782.0,4781.3,0.3484]
[1756077041228,0.7547,4782.0,4781.4,0.8424]
[1756077041426,1.1749,4781.4,4780.7,0.4485]
[1756077041627,0.7467,4781.3,4780.7,0.4485]
[1756077042715,0.4202,4781.7,4780.7,1.1908]
[1756077042920,0.3265,4781.6,4780.8,0.8424]
[1756077043617,0.3265,4781.6,4780.7,1.1908]
[1756077043818,3.2078,4781.8,4780.9,0.41837]
[1756077044018,3.2078,4781.8,4781.2,1.1908]
[1756077044218,3.2078,4781.8,4781.1,1.1908]
[1756077044424,3.2078,4781.8,4781.2,0.3484]
[1756077044724,3.2078,4781.8,4781.4,1.1908]
[1756077044725,3.5343,4781.8,4781.4,1.1908]
[1756077044930,3.5343,4781.8,4780.8,0.41838]
[1756077045227,3.5343,4781.8,4781.7,1.1908]
[1756077045426,0.3265,4781.8,4781.7,1.1908]
[1756077045622,3.636,4782.3,4781.1,3.2078]
[1756077045832,3.2078,4782.3,4781.5,1.1908]
[1756077046023,3.2078,4782.3,4781.6,1.1908]
[1756077046229,3.2078,4782.3,4781.7,0.8424]
[1756077046530,0.3265,4782.6,4781.5,0.41831]
[1756077046720,0.3265,4782.6,4781.9,1.1908]
[1756077046920,0.3265,4782.6,4781.7,3.2078]
[1756077047226,0.3265,4782.6,4780.9,1.04593]
[1756077047227,3.2078,4782.8,4782.2,1.1908]
[1756077047428,3.2078,4782.8,4782.4,0.8424]
[1756077047626,3.2078,4782.8,4782.1,0.41826]
[1756077047922,3.2078,4782.8,4782.7,1.1908]
[1756077048129,0.7467,4783.2,4782.8,1.1908]
[1756077048430,0.3265,4783.4,4782.5,0.41823]
[1756077048626,0.3265,4783.4,4782.7,1.1908]
[1756077048826,0.3265,4783.4,4782.8,1.1908]
[1756077049133,0.3265,4783.4,4782.5,0.41823]
[1756077049433,0.4202,4783.7,4783.2,0.8424]
[1756077049728,3.2078,4784.4,4783.2,3.2078]
[1756077049922,0.7467,4783.9,4783.8,0.3939]
[1756077050121,0.3265,4783.9,4783.8,0.3939]
[1756077050324,0.7467,4783.9,4783.8,0.8424]
[1756077050736,0.3265,4783.9,4783.8,1.1908]
[1756077051130,0.4202,4784.3,4783.3,3.2078]
[1756077051332,0.3265,4784.5,4783.9,3.2078]
[1756077051532,0.8484,4785.2,4784.4,3.2078]
[1756077051729,3.2078,4785.4,4784.5,1.1908]
[1756077051926,3.2078,4785.4,4784.5,0.41805]
[1756077052128,3.2078,4785.4,4784.8,1.1908]
[1756077052330,3.5343,4785.9,4784.6,0.41804]
[1756077052532,3.5343,4785.9,4785.1,0.4485]
[1756077052835,3.2078,4785.9,4784.5,0.41805]
[1756077053037,0.7467,4785.6,4784.5,0.41805]
[1756077053238,0.3265,4785.5,4784.7,0.8424]
[1756077053435,0.3265,4785.5,4784.8,0.3939]
[1756077053635,0.3265,4785.5,4785.0,0.3484]
[1756077053835,0.3265,4785.5,4784.4,3.2078]
[1756077053836,0.4202,4785.7,4784.7,1.1908]
[1756077054134,0.7467,4785.5,4784.9,0.8424]
[1756077054336,3.2078,4785.9,4784.4,1.1908]
[1756077054534,1.1749,4785.2,4784.4,1.1908]
[1756077054725,0.7467,4785.0,4784.4,1.1908]
[1756077054926,0.3265,4784.9,4784.4,1.1908]
[1756077055238,0.4282,4785.2,4784.4,1.1908]
[1756077055239,0.4202,4784.7,4784.5,0.4485]
[1756077055438,0.4202,4784.7,4784.6,0.3939]
[1756077055833,1.1749,4784.7,4784.5,0.4485]
[1756077056029,1.1749,4785.2,4784.1,0.3939]
[1756077056235,0.7467,4785.1,4784.0,3.2078]
[1756077056437,0.3265,4785.1,4784.2,1.1908]
[1756077056634,0.3265,4785.1,4784.3,1.1908]
[1756077056837,0.3265,4785.1,4784.5,0.8424]
[1756077057341,0.7467,4785.1,4784.5,0.8424]
[1756077057539,3.2078,4785.3,4784.6,0.3939]
[1756077057540,1.1749,4784.9,4784.6,0.3939]
[1756077057741,0.7554,4784.8,4784.7,0.4115]
[1756077058043,0.3535,4786.0,4784.9,1.1798]
[1756077058236,0.3535,4786.0,4785.3,1.1798]
[1756077061145,0.3535,4786.0,4785.4,0.8415]
[1756077061342,0.3535,4786.0,4785.5,1.1798]
[1756077061544,0.3535,4786.1,4785.3,1.1798]
[1756077061740,0.3535,4786.0,4785.4,0.4115]
[1756077062343,3.6168,4786.2,4785.2,3.2078]
[1756077062541,3.6168,4786.2,4785.4,0.8415]
[1756077062542,1.1644,4786.1,4785.4,0.8415]
[1756077062742,0.4019,4785.7,4785.2,0.4115]
[1756077062939,0.8109,4785.7,4784.5,3.62585]
[1756077063150,0.8109,4785.7,4784.7,0.7498]
[1756077063442,0.8109,4785.7,4784.9,1.1798]
[1756077063443,0.4019,4785.5,4784.9,1.1798]
[1756077063643,0.8109,4785.6,4784.9,0.8415]
[1756077063847,0.3535,4785.5,4784.9,1.1798]
[1756077064053,0.4019,4786.0,4784.8,3.62582]
[1756077064343,0.3535,4786.2,4784.8,3.62583]
[1756077064549,0.3535,4786.2,4785.0,1.25951]
[1756077064748,0.3535,4786.2,4785.1,0.8415]
[1756077064944,0.3535,4786.2,4785.2,1.1798]
[1756077065142,0.3535,4786.2,4785.3,1.1798]
[1756077065341,0.3535,4786.2,4785.4,0.3383]
[1756077065644,0.4019,4786.5,4785.8,3.2078]
[1756077065842,0.3535,4786.7,4785.9,1.1798]
[1756077066245,0.3535,4786.7,4785.9,0.8415]
[1756077066447,0.3535,4786.7,4786.1,0.4115]
[1756077066848,0.4019,4786.6,4786.1,0.4115]
[1756077067051,0.3535,4786.6,4785.9,0.8415]
[1756077067349,0.3535,4786.6,4786.0,1.1798]
[1756077067754,0.3535,4786.6,4786.1,0.8415]
[1756077067943,0.3535,4786.6,4786.0,0.8415]
[1756077068142,0.7625,4787.2,4785.8,3.2078]
[1756077068357,0.3535,4787.2,4786.6,1.1798]
[1756077068559,0.3535,4787.1,4786.8,1.1798]
[1756077068753,0.3535,4787.0,4786.9,1.1798]
[1756077068955,0.4019,4787.2,4786.3,3.2078]
[1756077069356,0.4019,4787.2,4785.9,0.41793]
[1756077069357,0.4019,4787.2,4786.6,0.8415]
[1756077069558,0.3535,4787.1,4786.8,0.7498]
[1756077069856,0.3535,4787.0,4786.9,1.1798]
[1756077071558,0.3535,4787.0,4786.9,0.8415]
[1756077071755,0.7554,4786.9,4786.4,0.8415]
[1756077071956,1.1644,4786.8,4786.4,0.8415]
[1756077072159,0.409,4787.1,4786.4,0.8415]
[1756077072362,3.2078,4787.3,4786.2,1.1798]
[1756077072564,3.2078,4787.3,4786.3,1.1798]
[1756077072863,3.2078,4787.3,4785.8,3.62574]
[1756077073064,3.2078,4787.3,4786.5,0.3383]
[1756077073266,0.60123891,4787.2,4786.6,0.8415]
[1756077073455,3.2078,4787.3,4786.6,0.8415]
[1756077073659,0.3535,4787.2,4786.6,0.8415]
[1756077073958,0.3535,4787.2,4786.6,0.43]
[1756077074163,0.3535,4787.2,4786.7,0.7498]
[1756077074363,3.2078,4787.3,4786.5,1.1798]
[1756077074663,3.2078,4787.3,4786.7,1.1798]
[1756077074869,3.2078,4787.3,4786.7,0.3383]
[1756077075066,0.60151743,4787.2,4786.5,1.1798]
[1756077075370,3.2078,4787.3,4786.4,3.2078]
[1756077075570,0.60196506,4787.2,4786.4,3.2078]
[1756077075869,4.0705,4787.3,4787.2,0.7804]
[1756077076070,4.67246528,4787.3,4787.2,1.9602]
[1756077077268,1.46466528,4787.3,4787.2,1.9602]
[1756077078263,0.82946528,4787.3,4787.2,1.9602]
[1756077078469,1.46466528,4787.3,4787.2,1.9602]
[1756077079165,1.11116528,4787.3,4787.2,1.9602]
[1756077079366,0.60196528,4787.3,4787.2,1.9602]
[1756077080671,0.88366528,4787.3,4787.2,1.9602]
[1756077080973,1.11116528,4787.3,4787.2,1.9602]
[1756077082568,0.60196528,4787.3,4787.2,1.9602]
[1756077083366,0.409,4788.3,4787.2,1.9602]
[1756077083367,1.49287335,4789.8,4787.7,20.88911]
[1756077083566,0.509,4790.2,4789.7,3.2078]
[1756077083871,0.1,4790.2,4789.7,3.2078]
[1756077084170,0.1,4790.2,4790.0,0.41757]
[1756077084376,0.409,4791.1,4790.2,0.41755]
[1756077084577,0.409,4791.0,4790.9,3.2078]
[1756077084773,0.409,4791.0,4790.9,3.46356638]
[1756077085273,0.8109,4791.0,4790.9,3.46356638]
[1756077086583,5.1644,4791.0,4790.9,0.25576638]
[1756077087269,0.8109,4791.0,4790.9,0.25576638]
[1756077087671,5.1644,4791.0,4790.9,0.25576638]
[1756077087878,0.768,4790.9,4790.8,3.2078]
[1756077088077,5.1804,4790.9,4790.8,0.25463896]
[1756077088277,1.1804,4790.8,4789.8,3.2078]
[1756077088483,1.1804,4790.7,4789.9,0.25454272]
[1756077088780,0.4124,4790.6,4790.0,0.25454272]
[1756077088982,0.768,4790.3,4790.1,0.25454272]
[1756077089175,3.2078,4790.8,4790.2,0.25454272]
[1756077089377,3.2078,4790.8,4790.3,0.25454272]
[1756077089578,0.7663,4790.7,4790.4,0.25454272]
[1756077089883,1.1804,4790.6,4790.5,0.25466337]
[1756077090084,1.1804,4790.6,4789.8,3.2078]
[1756077090283,1.1804,4790.4,4789.9,0.25460832]
[1756077090474,1.1804,4790.3,4790.0,0.25460832]
[1756077090781,1.1804,4790.2,4790.1,0.25460832]
[1756077091480,5.1804,4790.2,4790.1,0.25460832]
[1756077091688,1.1804,4790.1,4788.4,0.254]
[1756077091880,1.1804,4789.4,4788.2,3.2078]
[1756077092079,41.6265,4789.4,4788.2,3.2078]
[1756077092287,1.1804,4789.2,4788.3,0.254]
[1756077092585,0.4141,4789.0,4788.3,0.254]
[1756077092779,0.8265,4788.8,4788.3,0.254]
[1756077092979,0.4124,4788.6,4788.3,0.2588]
[1756077093182,0.4124,4788.6,4788.2,3.2078]
[1756077093486,0.8265,4789.1,4788.3,0.2588]
[1756077093681,0.3539,4789.4,4788.3,0.254]
[1756077093888,0.4124,4789.4,4788.2,3.2078]
[1756077094180,0.4141,4789.4,4788.2,3.2078]
[1756077094386,0.4124,4789.3,4788.3,0.254]
[1756077094580,0.768,4789.2,4788.4,0.0048]
[1756077094787,0.4124,4789.1,4788.5,0.254]
[1756077095784,3.2078,4790.6,4789.3,0.0048]
[1756077095988,3.2078,4790.6,4789.5,3.2078]
[1756077096189,0.3539,4790.4,4789.5,3.2078]
[1756077096482,3.2078,4790.6,4789.5,3.2078]
[1756077096683,0.3539,4790.0,4789.5,3.2078]
[1756077096890,0.8265,4789.8,4789.7,0.254]
[1756077097080,1.1804,4789.8,4789.7,0.254]
[1756077097580,0.4124,4789.7,4789.5,3.2078]
[1756077097777,0.7663,4789.6,4789.5,3.2078]
[1756077097985,1.1804,4789.6,4789.5,3.2078]
[1756077098587,1.1804,4789.6,4789.5,3.4618]
[1756077098883,0.4124,4790.0,4789.5,3.4713]
[1756077099190,0.4124,4789.8,4789.7,0.2588]
[1756077100180,0.4124,4790.4,4789.7,0.254]
[1756077100490,1.1804,4790.5,4789.8,0.0048]
[1756077100684,0.8265,4790.3,4789.8,0.0048]
[1756077100884,3.2078,4791.2,4789.5,3.2078]
[1756077101084,1.1804,4790.6,4789.5,3.2078]
[1756077101291,1.1804,4790.4,4789.5,3.2078]
[1756077101488,1.1804,4790.3,4789.5,3.2078]
[1756077101691,0.3539,4790.1,4789.5,3.2078]
[1756077101892,0.3539,4790.1,4788.8,0.254]
[1756077101893,3.2078,4790.0,4788.8,3.2078]
[1756077102085,1.1804,4789.9,4788.8,3.2078]
[1756077102285,1.1804,4789.7,4788.8,3.2078]
[1756077102487,0.4141,4789.6,4788.8,3.2078]
[1756077102687,1.1804,4789.4,4788.8,3.2078]
[1756077102982,3.2078,4790.0,4788.8,3.2078]
[1756077103291,1.1804,4788.8,4788.3,3.2078]
[1756077103495,0.768,4788.4,4787.5,0.3318]
[1756077103689,0.8265,4788.1,4787.5,0.3318]
[1756077103890,3.2078,4788.5,4787.3,3.5396]
[1756077104086,0.8265,4788.4,4787.3,0.3318]
[1756077104392,1.1804,4788.1,4787.9,3.5396]
[1756077104585,1.1804,4788.9,4787.9,3.5396]
[1756077104783,0.8265,4788.8,4787.9,3.5396]
[1756077104984,3.2078,4789.0,4787.9,3.5396]
[1756077104985,0.3539,4788.6,4787.9,3.5396]
[1756077105185,41.9804,4788.6,4787.9,3.5396]
[1756077105386,1.1804,4788.6,4788.0,0.3318]
[1756077106292,0.8265,4788.5,4788.0,0.3318]
[1756077106486,1.1804,4788.8,4788.1,0.3318]
[1756077106692,1.1804,4788.8,4787.5,0.3318]
[1756077107099,0.8265,4788.7,4787.7,0.4028]
[1756077107397,0.8265,4788.7,4787.8,0.3366]
[1756077107787,0.8265,4788.5,4787.8,0.3318]
[1756077108089,3.2078,4788.5,4787.4,3.5396]
[1756077108296,0.3539,4788.3,4787.0,0.3318]
[1756077108592,1.1804,4788.1,4787.0,0.3318]
[1756077108794,1.1804,4788.0,4787.0,0.3318]
[1756077108991,0.8265,4787.9,4787.0,0.3318]
[1756077109194,0.8265,4787.9,4787.1,0.4076]
[1756077109394,0.8265,4787.9,4787.2,0.3366]
[1756077109789,0.8265,4788.3,4787.4,0.7544]
[1756077109994,0.4124,4788.5,4788.2,0.7394]
[1756077110198,0.4124,4788.5,4788.3,0.3366]
[1756077110390,0.8265,4788.5,4788.3,0.7394]